fUSD/lending_fUSD_20240520
["ID","MTS","AMOUNT","RATE_DAILY","PERIOD"]
[327570846,1716238252928,-758.851273,0.00037462,7]
[327570848,1716238252937,-151.0,0.00037462,7]
[327570850,1716238252947,-216.383977,0.00037462,7]
[327570852,1716238252956,-19586.89438401,0.00037463,10]
[327570854,1716238252965,-150.0,0.00037491,2]
[327570856,1716238252976,-450.0,0.000375,30]
[327570858,1716238252985,-239.0,0.000375,26]
[327570860,1716238252994,-1500.0,0.0003751,2]
[327570862,1716238253003,-219.88,0.0003752,2]
[327570864,1716238253012,-351.8,0.00037556,2]
[327570866,1716238253021,-163.42,0.00037556,2]
[327570868,1716238253031,-150.0,0.00037561,2]
[327570870,1716238253040,-150.0,0.00037561,2]
[327570872,1716238253049,-150.0,0.00037561,2]
[327570874,1716238253058,-150.0,0.00037561,2]
[327570876,1716238253067,-4103.21685525,0.0003759,2]
[327570878,1716238253076,-314.052016,0.00037648,42]
[327570880,1716238253086,-150.0,0.00037666,2]
[327570882,1716238253095,-150.0,0.00037666,2]
[327570884,1716238253105,-420.73,0.00037666,2]
[327570886,1716238253114,-1046.52,0.00037666,2]
[327570888,1716238253124,-300.0,0.00037666,2]
[327570890,1716238253134,-420.73,0.00037666,2]
[327570892,1716238253143,-420.73,0.00037666,2]
[327570894,1716238253153,-3110.19462824,0.000377,30]
[327570896,1716238253162,-1442.15800816,0.000377,4]
[327570898,1716238253171,-314.052016,0.00037748,40]
[327570900,1716238253181,-314.103628,0.00037748,42]
[327570902,1716238253190,-300.0,0.00037891,120]
[327570904,1716238253199,-204.0,0.0003797,15]
[327570906,1716238253208,-204.0,0.0003798,15]
[327570908,1716238253218,-204.0,0.0003799,15]
[327570910,1716238253231,-50000.0,0.00038,18]
[327570912,1716238253240,-50000.0,0.00038,28]
[327570914,1716238253250,-900.0,0.00038,39]
[327570916,1716238253260,-150.0,0.00038,10]
[327570919,1716238253270,-486.9498416,0.00038,120]
[327570920,1716238253280,-500.0,0.00038,2]
[327570923,1716238253289,-1012.0,0.00038,120]
[327570924,1716238253299,-239.0,0.00038,27]
[327570926,1716238253308,-151.0,0.00038,7]
[327570929,1716238253318,-290.141817,0.00038,7]
[327570930,1716238253328,-151.0,0.00038,7]
[327570933,1716238253337,-151.417863,0.00038,7]
[327570934,1716238253347,-151.0,0.00038,7]
[327570936,1716238253356,-151.0,0.00038,7]
[327570938,1716238253366,-151.0,0.00038,7]
[327570940,1716238253376,-151.0,0.00038,7]
[327570942,1716238253386,-151.0,0.00038,7]
[327570945,1716238253395,-151.0,0.00038,7]
[327570947,1716238253405,-151.0,0.00038,7]
[327570948,1716238253415,-152.04337,0.00038,7]
[327570950,1716238253427,-151.0,0.00038,7]
[327570952,1716238253436,-155.642765,0.00038,7]
[327570953,1716238253445,-155.642765,0.00038,7]
[327570954,1716238253455,-151.0,0.00038,7]
[327570955,1716238253465,-523.471196,0.00038,7]
[327570956,1716238253477,-523.471196,0.00038,7]
[327570957,1716238253487,-988.0,0.00038018,14]
[327570958,1716238253496,-152.99,0.00038027,30]
[327570959,1716238253507,-314.052016,0.00038148,42]
[327570960,1716238253520,-173.051814,0.00038148,44]
[327570961,1716238253530,-150.0,0.00038311,120]
[327570962,1716238253540,-150.0,0.00038332,2]
[327570963,1716238253549,-300.3,0.00038378,2]
[327570964,1716238253558,-178.01241956,0.000384,33]
[327570965,1716238253568,-2000.0,0.000384,2]
[327570966,1716238253577,-357.0,0.000384,2]
[327570967,1716238253586,-150.0,0.00038428,2]
[327570968,1716238253596,-5015.7307,0.00038428,30]
[327570969,1716238253606,-2617.54872489,0.00038438,2]
[327570970,1716238253615,-314.052016,0.00038448,42]
[327570971,1716238253624,-239.0,0.000385,28]
[327570972,1716238253634,-300.0,0.0003862,120]
[327570973,1716238253643,-314.052016,0.00038648,44]
[327570974,1716238253653,-19691.63819154,0.00038648,2]
[327570975,1716238253662,-214724.89057512,0.00038651,7]
[327570976,1716238253672,-314.052016,0.00038748,42]
[327570977,1716238253681,-151.0,0.0003877,15]
[327570978,1716238253690,-151.0,0.0003878,15]
[327570979,1716238253699,-2452.43199597,0.0003878,7]
[327570980,1716238253709,-2452.43199597,0.0003878,7]
[327570981,1716238253718,-2452.43199597,0.0003878,7]
[327570982,1716238253730,-2452.43199597,0.0003878,7]
[327570983,1716238253739,-2452.43199597,0.0003878,7]
[327570984,1716238253748,-2452.43199597,0.0003878,7]
[327570985,1716238253757,-2452.43199597,0.0003878,7]
[327570986,1716238253766,-2452.43199597,0.0003878,7]
[327570987,1716238253776,-2452.43199597,0.0003878,7]
[327570988,1716238253786,-2452.43199597,0.0003878,7]
[327570989,1716238253795,-2452.43199597,0.0003878,7]
[327570990,1716238253990,-2452.43199597,0.0003878,7]
[327570991,1716238254000,-2452.43199597,0.0003878,7]
[327570992,1716238254010,-2452.43199597,0.0003878,7]
[327570993,1716238254020,-2452.43199597,0.0003878,7]
[327570994,1716238254029,-2452.43199597,0.0003878,7]
[327570995,1716238254039,-2452.43199597,0.0003878,7]
[327570996,1716238254048,-2452.43199597,0.0003878,7]
[327570997,1716238254058,-2452.43199597,0.0003878,7]
[327570998,1716238254067,-2452.93,0.0003878,7]
[327570999,1716238254077,-9809.80298386,0.0003878,7]
[327571000,1716238254086,-9809.80298386,0.0003878,7]
[327571001,1716238254095,-9809.80298386,0.0003878,7]
[327571002,1716238254105,-9809.80298386,0.0003878,7]
[327571003,1716238254114,-9809.80298386,0.0003878,7]
[327571004,1716238254123,-9809.80298386,0.0003878,7]
[327571005,1716238254132,-811.4874611,0.0003878,7]
[327571006,1716238254142,-811.4874611,0.0003878,7]
[327571007,1716238254151,-811.4874611,0.0003878,7]
[327571008,1716238254161,-811.4874611,0.0003878,7]
[327571009,1716238254170,-811.4874611,0.0003878,7]
[327571010,1716238254180,-811.4874611,0.0003878,7]
[327571011,1716238254189,-811.4874611,0.0003878,7]
[327571012,1716238254200,-811.4874611,0.0003878,7]
[327571013,1716238254210,-811.4874611,0.0003878,7]
[327571014,1716238254221,-811.4874611,0.0003878,7]
[327571015,1716238254236,-811.4874611,0.0003878,7]
[327571016,1716238254245,-811.4874611,0.0003878,7]
[327571017,1716238254254,-811.4874611,0.0003878,7]
[327571018,1716238254263,-811.4874611,0.0003878,7]
[327571019,1716238254272,-811.4874611,0.0003878,7]
[327571020,1716238254281,-811.4874611,0.0003878,7]
[327571021,1716238254290,-811.4874611,0.0003878,7]
[327571022,1716238254299,-811.4874611,0.0003878,7]
[327571023,1716238254308,-811.4874611,0.0003878,7]
[327571024,1716238254318,-811.98,0.0003878,7]
[327571025,1716238254327,-3246.02484438,0.0003878,7]
[327571026,1716238254337,-3246.02484438,0.0003878,7]
[327571027,1716238254346,-3246.02484438,0.0003878,7]
[327571028,1716238254355,-3246.02484438,0.0003878,7]
[327571029,1716238254364,-3246.02484438,0.0003878,7]
[327571030,1716238254374,-3246.02484438,0.0003878,7]
[327571031,1716238254383,-174.58962827,0.0003878,7]
[327571032,1716238254393,-174.58962827,0.0003878,7]
[327571033,1716238254402,-174.58962827,0.0003878,7]
[327571034,1716238254413,-174.58962827,0.0003878,7]
[327571035,1716238254424,-174.58962827,0.0003878,7]
[327571036,1716238254435,-174.58962827,0.0003878,7]
[327571037,1716238254445,-174.58962827,0.0003878,7]
[327571038,1716238254456,-174.58962827,0.0003878,7]
[327571039,1716238254466,-174.58962827,0.0003878,7]
[327571040,1716238254477,-174.58962827,0.0003878,7]
[327571041,1716238254486,-174.58962827,0.0003878,7]
[327571042,1716238254496,-174.58962827,0.0003878,7]
[327571043,1716238254507,-174.58962827,0.0003878,7]
[327571044,1716238254516,-174.58962827,0.0003878,7]
[327571045,1716238254526,-174.58962827,0.0003878,7]
[327571046,1716238254535,-174.58962827,0.0003878,7]
[327571047,1716238254544,-174.58962827,0.0003878,7]
[327571048,1716238254554,-174.58962827,0.0003878,7]
[327571049,1716238254563,-174.58962827,0.0003878,7]
[327571050,1716238254573,-175.08,0.0003878,7]
[327571051,1716238254582,-698.4335131,0.0003878,7]
[327571052,1716238254592,-698.4335131,0.0003878,7]
[327571053,1716238254601,-698.4335131,0.0003878,7]
[327571054,1716238254610,-698.4335131,0.0003878,7]
[327571055,1716238254619,-698.4335131,0.0003878,7]
[327571056,1716238254629,-698.4335131,0.0003878,7]
[327571057,1716238254638,-491.83564545,0.0003878,7]
[327571058,1716238254648,-491.83564545,0.0003878,7]
[327571059,1716238254658,-491.83564545,0.0003878,7]
[327571060,1716238254667,-491.83564545,0.0003878,7]
[327571061,1716238254677,-491.83564545,0.0003878,7]
[327571062,1716238254687,-491.83564545,0.0003878,7]
[327571063,1716238254696,-491.83564545,0.0003878,7]
[327571064,1716238254705,-491.83564545,0.0003878,7]
[327571065,1716238254714,-491.83564545,0.0003878,7]
[327571066,1716238254726,-491.83564545,0.0003878,7]
[327571067,1716238254735,-491.83564545,0.0003878,7]
[327571068,1716238254745,-491.83564545,0.0003878,7]
[327571069,1716238254754,-491.83564545,0.0003878,7]
[327571070,1716238254764,-491.83564545,0.0003878,7]
[327571071,1716238254774,-491.83564545,0.0003878,7]
[327571072,1716238254783,-491.83564545,0.0003878,7]
[327571073,1716238254792,-491.83564545,0.0003878,7]
[327571074,1716238254801,-491.83564545,0.0003878,7]
[327571075,1716238254810,-491.83564545,0.0003878,7]
[327571076,1716238254819,-492.33,0.0003878,7]
[327571077,1716238254828,-1967.4175818,0.0003878,7]
[327571079,1716238254838,-1967.4175818,0.0003878,7]
[327571081,1716238254847,-1967.4175818,0.0003878,7]
[327571083,1716238254856,-1967.4175818,0.0003878,7]
[327571085,1716238254866,-1967.4175818,0.0003878,7]
[327571087,1716238254876,-1967.4175818,0.0003878,7]
[327571089,1716238254885,-151.0,0.0003879,15]
[327571090,1716238254894,-3236.2951206,0.00038851,2]
[327571091,1716238254904,-55455.4898914,0.00038851,2]
[327571092,1716238254914,-3724.9506851,0.00038851,2]
[327571093,1716238254924,-4274.8505729,0.00038853,2]
[327571094,1716238254933,-3470.0051646,0.00038853,2]
[327571095,1716238254944,-8764.9671705,0.00038853,2]
[327571096,1716238254953,-7107.2706523,0.00038853,2]
[327571097,1716238254963,-2624.2226452,0.00038853,2]
[327571098,1716238254973,-2012.1501697,0.00038853,2]
[327571099,1716238254985,-44518.351629,0.00038853,2]
[327571100,1716238254994,-33581.2133667,0.00038853,2]
[327571101,1716238255004,-2990.3020373,0.00038853,2]
[327571102,1716238255014,-2255.6533894,0.00038853,2]
[327571103,1716238255024,-151.0,0.00038877,14]
[327571104,1716238255034,-118149.82914924,0.00038877,2]
[327571105,1716238255043,-178.32454223,0.00038879,30]
[327571106,1716238255053,-237.31936722,0.00038879,7]
[327571107,1716238255063,-1859312.97041833,0.0003888,30]
[327571108,1716238255072,-219.000915,0.0003888,14]
[327571109,1716238255081,-151.0,0.0003888,7]
[327571110,1716238255091,-289.725,0.0003888,7]
[327571111,1716238255101,-151.0,0.0003888,14]
[327571112,1716238255111,-151.0,0.0003888,14]
[327571113,1716238255121,-151.0,0.0003888,14]
[327571114,1716238255130,-151.0,0.0003888,14]
[327571115,1716238255139,-151.0,0.0003888,14]
[327571116,1716238255149,-151.0,0.0003888,14]
[327571117,1716238255158,-151.0,0.0003888,14]
[327571118,1716238255168,-151.0,0.0003888,14]
[327571119,1716238255177,-151.0,0.0003888,14]
[327571120,1716238255187,-151.0,0.0003888,14]
[327571121,1716238255196,-151.0,0.0003888,14]
[327571122,1716238255205,-151.0,0.0003888,14]
[327571123,1716238255215,-151.0,0.0003888,14]
[327571124,1716238255226,-151.0,0.0003888,14]
[327571125,1716238255237,-151.0,0.0003888,14]
[327571126,1716238255246,-353.881301,0.0003888,14]
[327571127,1716238255256,-352.43775,0.0003888,14]
[327571128,1716238255265,-151.0,0.0003888,14]
[327571129,1716238255275,-151.0,0.0003888,14]
[327571130,1716238255285,-204.842037,0.0003888,14]
[327571131,1716238255295,-204.842037,0.0003888,14]
[327571132,1716238255304,-151.0,0.0003888,14]
[327571133,1716238255314,-151.0,0.0003888,14]
[327571134,1716238255325,-151.0,0.0003888,14]
[327571135,1716238255341,-151.0,0.0003888,14]
[327571136,1716238255359,-151.0,0.0003888,14]
[327571137,1716238255368,-151.0,0.0003888,14]
[327571138,1716238255378,-151.924685,0.0003888,14]
[327571139,1716238255388,-151.0,0.0003888,14]
[327571140,1716238255404,-648.860738,0.0003888,14]
[327571141,1716238255425,-151.0,0.0003888,14]
[327571142,1716238255442,-151.0,0.0003888,14]
[327571143,1716238255452,-648.860738,0.0003888,14]
[327571144,1716238255462,-151.0,0.0003888,14]
[327571145,1716238255471,-151.0,0.0003888,14]
[327571146,1716238255484,-155.883838,0.0003888,14]
[327571147,1716238255493,-155.883838,0.0003888,14]
[327571148,1716238255502,-348.368327,0.0003888,14]
[327571149,1716238255511,-348.368327,0.0003888,14]
[327571150,1716238255521,-151.0,0.0003888,14]
[327571151,1716238255530,-151.0,0.0003888,14]
[327571152,1716238255539,-151.0,0.0003888,14]
[327571153,1716238255549,-151.0,0.0003888,14]
[327571154,1716238255558,-151.0,0.0003888,14]
[327571155,1716238255567,-151.0,0.0003888,14]
[327571156,1716238255576,-208.366228,0.0003888,14]
[327571157,1716238255586,-153.533141,0.0003888,14]
[327571158,1716238255596,-299.456999,0.0003888,14]
[327571159,1716238255606,-299.456999,0.0003888,14]
[327571160,1716238255615,-153.533141,0.0003888,14]
[327571161,1716238255625,-151.0,0.0003888,14]
[327571162,1716238255634,-151.0,0.0003888,14]
[327571163,1716238255644,-151.0,0.0003888,14]
[327571164,1716238255654,-299.860395,0.0003888,14]
[327571165,1716238255663,-299.860395,0.0003888,14]
[327571166,1716238255672,-151.0,0.0003888,14]
[327571167,1716238255682,-151.0,0.0003888,14]
[327571168,1716238255691,-151.0,0.0003888,14]
[327571169,1716238255700,-151.0,0.0003888,14]
[327571170,1716238255708,-151.0,0.0003888,14]
[327571171,1716238255718,-152.906485,0.0003888,14]
[327571172,1716238255727,-151.0,0.0003888,14]
[327571173,1716238255736,-151.0,0.0003888,14]
[327571174,1716238255745,-151.0,0.0003888,14]
[327571175,1716238255754,-151.0,0.0003888,14]
[327571176,1716238255763,-151.0,0.0003888,14]
[327571177,1716238255772,-309.544549,0.0003888,14]
[327571178,1716238255781,-151.0,0.0003888,14]
[327571179,1716238255790,-258.247831,0.0003888,14]
[327571180,1716238255799,-309.544549,0.0003888,14]
[327571181,1716238255808,-258.247831,0.0003888,14]
[327571182,1716238255818,-151.0,0.0003888,14]
[327571183,1716238255827,-151.0,0.0003888,14]
[327571184,1716238255836,-151.0,0.0003888,14]
[327571185,1716238255845,-324.726006,0.0003888,14]
[327571186,1716238255855,-324.726006,0.0003888,14]
[327571187,1716238255864,-758.851273,0.0003888,14]
[327571188,1716238255873,-151.0,0.0003888,14]
[327571189,1716238255882,-151.0,0.0003888,14]
[327571190,1716238255892,-758.851273,0.0003888,14]
[327571191,1716238255901,-151.0,0.0003888,14]
[327571192,1716238255910,-151.0,0.0003888,14]
[327571193,1716238255919,-151.401164,0.0003888,14]
[327571194,1716238255929,-151.0,0.0003888,14]
[327571195,1716238255938,-151.0,0.0003888,14]
[327571196,1716238255948,-151.0,0.0003888,14]
[327571197,1716238255957,-151.882096,0.0003888,14]
[327571198,1716238255967,-151.0,0.0003888,14]
[327571199,1716238255978,-151.0,0.0003888,14]
[327571200,1716238255987,-151.0,0.0003888,14]
[327571201,1716238255996,-151.0,0.0003888,14]
[327571202,1716238256005,-299.122436,0.0003888,7]
[327571203,1716238256014,-151.0,0.0003888,14]
[327571204,1716238256023,-151.0,0.0003888,14]
[327571205,1716238256040,-269.943827,0.0003888,14]
[327571206,1716238256049,-282.206831,0.0003888,14]
[327571207,1716238256058,-155.642765,0.0003888,14]
[327571208,1716238256068,-155.642765,0.0003888,14]
[327571209,1716238256077,-151.0,0.0003888,14]
[327571210,1716238256086,-151.0,0.0003888,14]
[327571211,1716238256095,-254.288501,0.0003888,14]
[327571212,1716238256105,-523.471196,0.0003888,14]
[327571213,1716238256114,-2606.193622,0.0003888,14]
[327571214,1716238256123,-523.471196,0.0003888,14]
[327571215,1716238256132,-2606.193622,0.0003888,14]
[327571216,1716238256141,-151.0,0.0003888,14]
[327571217,1716238256151,-151.0,0.0003888,14]
[327571218,1716238256160,-151.0,0.0003888,14]
[327571219,1716238256169,-151.0,0.0003888,14]
[327571220,1716238256178,-205.222801,0.0003888,14]
[327571221,1716238256187,-205.222801,0.0003888,14]
[327571222,1716238256196,-151.0,0.0003888,14]
[327571223,1716238256206,-459.884371,0.0003888,14]
[327571224,1716238256215,-1032.12148,0.0003888,14]
[327571225,1716238256225,-1032.12148,0.0003888,14]
[327571226,1716238256236,-459.884371,0.0003888,14]
[327571227,1716238256245,-151.526548,0.0003888,14]
[327571228,1716238256254,-276.847444,0.0003888,14]
[327571229,1716238256263,-276.847444,0.0003888,14]
[327571230,1716238256272,-151.0,0.0003888,14]
[327571231,1716238256281,-342.878346,0.0003888,14]
[327571232,1716238256291,-342.878346,0.0003888,14]
[327571233,1716238256300,-151.0,0.0003888,14]
[327571234,1716238256309,-151.0,0.0003888,14]
[327571235,1716238256318,-151.0,0.0003888,14]
[327571236,1716238256327,-19586.89438401,0.0003889,12]
[327571237,1716238256337,-889.28213157,0.000389,30]
[327571238,1716238256346,-400.0,0.000389,14]
[327571239,1716238256356,-625.0,0.0003898,15]
[327571240,1716238256365,-787.0,0.0003898,15]
[327571241,1716238256374,-625.0,0.0003899,15]
[327571242,1716238256383,-787.0,0.0003899,15]
[327571243,1716238256392,-50000.0,0.00039,19]
[327571244,1716238256401,-50000.0,0.00039,29]
[327571245,1716238256414,-18731.74912288,0.00039,2]
[327571246,1716238256423,-3985.05369502,0.00039,2]
[327571247,1716238256432,-1163.06330427,0.00039,2]
[327571248,1716238256441,-1900.0,0.00039,30]
[327571249,1716238256450,-500.0,0.00039,80]
[327571250,1716238256460,-150.0,0.00039,10]
[327571251,1716238256469,-160.85843721,0.00039,15]
[327571252,1716238256480,-394.57285548,0.00039,5]
[327571253,1716238256492,-900.0,0.00039,40]
[327571254,1716238256502,-1000.0,0.00039,120]
[327571255,1716238256511,-6027.0,0.00039,120]
[327571256,1716238256520,-239.0,0.00039,28]
[327571257,1716238256530,-2200.0,0.00039,2]
[327571258,1716238256539,-321.27328421,0.00039005,2]
[327571259,1716238256548,-9809.80298386,0.00039063,7]
[327571260,1716238256557,-3246.02484438,0.00039063,7]
[327571261,1716238256566,-698.4335131,0.00039063,7]
[327571262,1716238256575,-1967.4175818,0.00039063,7]
[327571263,1716238256585,-2665.1597564,0.00039073,2]
[327571264,1716238256595,-5449.5741341,0.00039073,2]
[327571265,1716238256603,-2037.0349088,0.000391,2]
[327571266,1716238256613,-4910.26,0.000391,3]
[327571267,1716238256622,-4910.26,0.000391,3]
[327571268,1716238256631,-4910.26,0.000391,3]
[327571269,1716238256640,-4910.26,0.000391,3]
[327571270,1716238256649,-4910.26,0.000391,3]
[327571271,1716238256659,-4910.26,0.000391,3]
[327571272,1716238256668,-4910.26,0.000391,3]
[327571273,1716238256678,-4910.26,0.000391,3]
[327571274,1716238256687,-4910.26,0.000391,3]
[327571275,1716238256696,-4910.26,0.000391,3]
[327571276,1716238256706,-4910.26,0.000391,3]
[327571277,1716238256715,-4910.26,0.000391,3]
[327571278,1716238256724,-4910.26,0.000391,3]
[327571279,1716238256737,-4910.26,0.000391,3]
[327571280,1716238256746,-4910.26,0.000391,3]
[327571281,1716238256755,-4910.26,0.000391,3]
[327571282,1716238256765,-4242.98884615,0.000391,2]
[327571283,1716238256774,-1095.2,0.00039108,2]
[327571284,1716238256783,-314.052016,0.00039148,44]
[327571285,1716238256792,-427.93999894,0.00039245,5]
[327571286,1716238256802,-524.02,0.00039245,2]
[327571287,1716238256811,-150.0,0.00039245,2]
[327571288,1716238256822,-150.0,0.00039245,2]
[327571289,1716238256831,-351.8,0.00039245,2]
[327571290,1716238256840,-150.0,0.00039245,2]
[327571291,1716238256850,-150.0,0.00039245,2]
[327571292,1716238256859,-351.8,0.00039245,2]
[327571293,1716238256868,-524.02,0.00039245,2]
[327571294,1716238256877,-150.0,0.00039245,2]
[327571295,1716238256886,-524.02,0.00039245,2]
[327571296,1716238256895,-351.38,0.00039245,2]
[327571297,1716238256905,-163.46,0.00039245,2]
[327571298,1716238256914,-150.0,0.00039245,2]
[327571299,1716238256923,-524.02,0.00039245,2]
[327571300,1716238256932,-150.0,0.00039245,2]
[327571301,1716238256942,-163.46,0.00039245,2]
[327571302,1716238256951,-521.97,0.00039245,2]
[327571303,1716238256960,-163.46,0.00039245,2]
[327571304,1716238256970,-532.0,0.00039291,20]
[327571305,1716238256981,-300.0,0.00039348,120]
[327571306,1716238256991,-150.0,0.00039366,2]
[327571307,1716238257000,-988.0,0.00039388,16]
[327571308,1716238257010,-150.0,0.00039408,120]
[327571309,1716238257020,-314.052016,0.00039448,44]
[327571310,1716238257029,-173.051814,0.00039448,46]
[327571311,1716238257039,-240.64915,0.000395,29]
[327571312,1716238257048,-9809.80298386,0.00039512,7]
[327571313,1716238257058,-3246.02484438,0.00039512,7]
[327571314,1716238257067,-698.4335131,0.00039512,7]
[327571315,1716238257077,-1967.4175818,0.00039512,7]
[327571316,1716238257087,-314.052016,0.00039648,46]
[327571317,1716238257096,-532.0,0.00039696,20]
[327571318,1716238257107,-192.98324231,0.000397,13]
[327571319,1716238257116,-151.0,0.00039726,2]
[327571320,1716238257125,-151.0,0.00039726,2]
[327571321,1716238257135,-314.052016,0.00039748,44]
[327571322,1716238257144,-1400.0776942,0.00039773,2]
[327571323,1716238257154,-22644.0751043,0.00039773,2]
[327571324,1716238257163,-1521.0047416,0.00039773,2]
[327571325,1716238257172,-219.88,0.00039784,2]
[327571326,1716238257182,-381861.47490763,0.000398,60]
[327571327,1716238257212,-1214.3,0.000398,60]
[327571328,1716238257224,-290.646,0.000398,60]
[327571329,1716238257238,-463.85435021,0.000398,60]
[327571330,1716238257250,-8761.94712182,0.000398,60]
[327571331,1716238257402,-485.71662021,0.00035912,2]
[327571332,1716238257416,-38.30337979,0.00035912,2]
[327571333,1716238257434,-420.73,0.00035912,2]
[327571334,1716238257444,-7246.19477986,0.000398,60]
[327571335,1716238257458,-76322.23195287,0.000398,60]
[327571336,1716238257467,-130276.52913812,0.000398,2]
[327571337,1716238257478,-151.0,0.00039824,3]
[327571338,1716238257488,-591.13574367,0.0003984,10]
[327571339,1716238257497,-211.24,0.0003987,2]
[327571340,1716238257510,-315.26,0.0003987,2]
[327571341,1716238257520,-286.98,0.0003987,2]
[327571342,1716238257529,-26184.0229079,0.00039876,31]
[327571343,1716238257539,-450.8316,0.00039888,7]
[327571344,1716238257549,-2713.0,0.00039898,41]
[327571345,1716238257558,-26706.5163085,0.000399,30]
[327571346,1716238257568,-151.0,0.000399,14]
[327571347,1716238257577,-151.0,0.000399,14]
[327571348,1716238257586,-151.0,0.000399,14]
[327571349,1716238257596,-151.0,0.000399,14]
[327571350,1716238257606,-151.0,0.000399,14]
[327571351,1716238257616,-2606.193622,0.000399,14]
[327571352,1716238257627,-2606.193622,0.000399,14]
[327571353,1716238257637,-151.0,0.000399,14]
[327571354,1716238257647,-151.0,0.000399,14]
[327571355,1716238257657,-151.0,0.000399,14]
[327571356,1716238257666,-151.0,0.000399,14]
[327571357,1716238257675,-205.222801,0.000399,14]
[327571358,1716238257686,-205.222801,0.000399,14]
[327571359,1716238257696,-151.0,0.000399,14]
[327571360,1716238257705,-1032.12148,0.000399,14]
[327571361,1716238257714,-459.884371,0.000399,14]
[327571362,1716238257723,-1032.12148,0.000399,14]
[327571363,1716238257735,-459.884371,0.000399,14]
[327571364,1716238257744,-276.847444,0.000399,14]
[327571365,1716238257755,-276.847444,0.000399,14]
[327571366,1716238257765,-151.0,0.000399,14]
[327571367,1716238257774,-342.878346,0.000399,14]
[327571368,1716238257784,-342.878346,0.000399,14]
[327571369,1716238257794,-151.0,0.000399,14]
[327571370,1716238257804,-151.0,0.000399,14]
[327571371,1716238257814,-150.0,0.00039956,120]
[327571372,1716238257824,-151.0,0.00039961,14]
[327571373,1716238257833,-151.0,0.00039961,7]
[327571374,1716238257843,-151.0,0.00039961,14]
[327571375,1716238257852,-9809.80298386,0.00039961,7]
[327571376,1716238257861,-3246.02484438,0.00039961,7]
[327571377,1716238257871,-698.4335131,0.00039961,7]
[327571378,1716238257881,-1967.4175818,0.00039961,7]
[327571379,1716238257891,-151.0,0.00039973,14]
[327571380,1716238257904,-151.0,0.00039973,14]
[327571381,1716238257916,-151.0,0.00039973,14]
[327571382,1716238257927,-151.0,0.00039973,14]
[327571383,1716238257936,-151.0,0.00039973,14]
[327571384,1716238257946,-151.0,0.00039973,14]
[327571385,1716238257956,-151.0,0.00039973,14]
[327571386,1716238257965,-151.0,0.00039973,14]
[327571387,1716238258174,-151.0,0.00039973,14]
[327571388,1716238258185,-151.0,0.00039973,14]
[327571389,1716238258194,-183.375737,0.00039973,14]
[327571390,1716238258204,-151.0,0.00039973,14]
[327571391,1716238258214,-151.0,0.00039973,14]
[327571392,1716238258223,-353.881301,0.00039973,14]
[327571393,1716238258235,-352.43775,0.00039973,14]
[327571394,1716238258245,-151.0,0.00039973,14]
[327571395,1716238258255,-151.0,0.00039973,14]
[327571396,1716238258265,-204.842037,0.00039973,14]
[327571397,1716238258275,-204.842037,0.00039973,14]
[327571398,1716238258284,-151.0,0.00039973,2]
[327571399,1716238258294,-151.0,0.00039973,14]
[327571400,1716238258304,-151.0,0.00039973,14]
[327571401,1716238258314,-151.0,0.00039973,14]
[327571402,1716238258324,-151.0,0.00039973,14]
[327571403,1716238258333,-151.0,0.00039973,14]
[327571404,1716238258343,-151.0,0.00039973,14]